bitfinex/quotes_SOLUSD_20250317
["timestamp","ask_amount","ask_price","bid_price","bid_amount"]
[1742231433051,12.9997173,128.01,127.97,27.3501]
[1742231434564,0.03,128.01,127.97,40.3198173]
[1742231439570,20.0,127.99,127.97,27.3501]
[1742231439766,12.9697173,127.98,127.96,0.063]
[1742231439961,12.9697173,127.97,127.96,0.063]
[1742231443292,39.43366616,127.97,127.96,0.063]
[1742231444277,31.61936616,127.97,127.96,0.063]
[1742231444478,12.9697173,127.97,127.96,0.063]
[1742231454299,28.05264886,128.01,127.96,0.063]
[1742231454467,12.9697173,127.99,127.96,0.063]
[1742231454667,12.9697173,127.98,127.96,0.063]
[1742231454992,12.9697173,127.97,127.96,0.063]
[1742231456473,12.9697173,127.98,127.96,0.063]
[1742231458992,0.03,127.99,127.96,0.063]
[1742231460487,0.03,127.99,127.96,7.8779]
[1742231461199,20.03,127.99,127.96,7.8779]
[1742231461406,0.03,127.99,127.96,40.3849173]
[1742231461568,0.03,127.99,127.97,12.9697173]
[1742231462475,0.03,127.99,127.98,7.8137]
[1742231464798,0.03,127.99,127.97,12.9697173]
[1742231465719,0.03,127.99,127.98,12.9697173]
[1742231466321,0.03,127.99,127.96,7.8779]
[1742231466501,12.9997173,127.99,127.96,7.8779]
[1742231466701,12.9697173,127.98,127.96,7.8779]
[1742231467295,0.03,127.99,127.96,7.8779]
[1742231467509,12.9997173,127.99,127.96,7.8779]
[1742231470516,12.9997173,127.99,127.96,0.063]
[1742231470721,12.9697173,127.97,127.96,0.063]
[1742231471196,20.0,127.91,127.9,0.063]
[1742231471392,32.9697173,127.91,127.9,0.063]
[1742231472524,20.0,127.91,127.9,7.8816]
[1742231472723,12.9697173,127.94,127.9,7.8816]
[1742231473102,20.27230696,127.93,127.9,0.063]
[1742231473603,40.27230696,127.94,127.9,0.063]
[1742231474311,20.0,127.94,127.9,20.33530696]
[1742231474610,20.0,127.94,127.91,26.32880696]
[1742231474826,20.27230696,127.97,127.92,20.27230696]
[1742231475125,20.27230696,127.97,127.93,7.8167]
[1742231476095,20.27230696,127.98,127.93,29.59900696]
[1742231476309,20.27230696,127.97,127.93,9.3267]
[1742231478712,20.27230696,127.98,127.93,49.14090696]
[1742231479108,20.30230696,127.99,127.94,20.27230696]
[1742231480834,20.30230696,127.99,127.98,20.27230696]
[1742231480835,0.03,127.99,127.98,20.27230696]
[1742231482819,0.03,127.99,127.98,28.08600696]
[1742231484436,0.03,128.01,127.98,48.18895324]
[1742231484609,0.03,128.03,128.0,20.27230696]
[1742231484814,0.03,128.03,128.02,20.27230696]
[1742231485840,0.03,128.03,128.02,28.08350696]
[1742231486027,0.03,128.03,128.02,28.3678301]
[1742231486228,0.0001,128.03,128.02,34.95895324]
[1742231486610,0.0001,128.03,128.02,34.6746301]
[1742231487825,0.0001,128.03,128.02,34.95895324]
[1742231489143,0.0001,128.03,128.02,34.6746301]
[1742231489349,0.0001,128.03,128.02,28.3678301]
[1742231491845,0.0001,128.03,128.02,28.08350696]
[1742231492029,0.0001,128.03,128.01,14.7717]
[1742231492548,20.27240696,128.03,127.99,9.3507]
[1742231492915,20.27240696,128.03,127.99,29.62300696]
[1742231492916,0.0001,128.03,127.99,29.62300696]
[1742231493350,20.27240696,128.03,127.99,9.3507]
[1742231493552,20.27240696,128.03,127.99,7.8128]
[1742231494738,0.0001,128.03,127.99,28.08510696]
[1742231495448,0.0001,128.03,128.0,20.5566301]
[1742231495829,0.0001,128.03,128.01,7.8118]
[1742231497341,0.0001,128.03,127.99,39.80500696]
[1742231497541,20.0001,128.03,127.99,39.80500696]
[1742231498827,0.0001,128.03,127.99,19.5327]
[1742231499448,0.0001,128.03,127.99,27.3458]
[1742231500552,0.0001,128.03,127.99,47.61810696]
[1742231500929,0.0001,128.03,127.97,7.8143]
[1742231500930,20.27240696,128.03,127.97,7.8143]
[1742231501251,20.27230696,127.99,127.97,7.8143]
[1742231501550,20.27230696,128.0,127.96,7.8149]
[1742231503548,20.0,128.0,127.97,0.28432314]
[1742231503753,20.27240696,128.03,127.98,20.27230696]
[1742231504659,20.27230696,128.02,127.96,47.62450696]
[1742231505036,20.27230696,128.01,127.96,47.62450696]
[1742231506852,20.27230696,128.01,127.96,47.68750696]
[1742231507056,20.27230696,128.02,127.97,20.27230696]
[1742231507260,20.27230696,128.02,127.98,7.8137]
[1742231507445,20.27230696,128.01,127.98,7.8137]
[1742231508959,20.27230696,128.01,127.97,7.8141]
[1742231509263,20.27230696,128.01,127.96,20.33530696]
[1742231509264,20.27230696,128.0,127.96,7.8778]
[1742231510963,28.08480696,128.0,127.96,0.063]
[1742231512264,20.27230696,128.0,127.96,0.063]
[1742231513239,20.27230696,127.99,127.96,0.063]
[1742231513452,20.27230696,127.98,127.96,0.063]
[1742231513763,20.27230696,127.97,127.96,0.063]
[1742231514466,20.27230696,127.98,127.96,0.063]
[1742231514662,20.27230696,127.99,127.96,0.063]
[1742231514961,6.94,128.02,127.96,0.063]
[1742231515159,20.27230696,128.01,127.96,20.33530696]
[1742231515559,20.27230696,128.0,127.96,0.063]
[1742231516464,20.27230696,128.0,127.96,7.8779]
[1742231519546,20.27230696,128.01,127.96,34.43890696]
[1742231519746,20.27230696,128.01,127.96,53.97620696]
[1742231519946,20.0001,128.03,127.98,20.27230696]
[1742231520148,40.27230696,128.02,127.97,27.21230696]
[1742231520351,20.27230696,128.02,127.98,7.8137]
[1742231520547,40.27230696,128.02,127.98,7.8137]
[1742231521258,20.27230696,128.01,127.98,7.8137]
[1742231524553,20.27230696,128.0,127.97,14.754]
[1742231524769,20.27230696,127.98,127.96,0.063]
[1742231524981,20.27230696,127.97,127.96,0.063]
[1742231525471,20.27230696,127.98,127.96,0.063]
[1742231525675,20.27230696,127.97,127.96,0.063]
[1742231526375,20.27230696,127.98,127.96,0.063]
[1742231526574,20.27230696,127.97,127.96,0.063]
[1742231527355,46.14627896,127.97,127.96,0.063]
[1742231527868,27.21230696,127.97,127.96,0.063]
[1742231528477,6.94,127.97,127.96,0.063]
[1742231528775,27.21230696,127.97,127.96,0.063]
[1742231532375,20.27230696,127.98,127.96,0.063]
[1742231534174,40.27230696,127.97,127.96,0.063]
[1742231535277,6.94,128.01,127.96,0.063]
[1742231535459,20.27230696,127.99,127.96,0.063]
[1742231536064,40.27230696,127.98,127.96,0.063]
[1742231536782,20.27230696,127.97,127.96,0.063]
[1742231539667,40.27230696,127.98,127.96,0.063]
[1742231540376,20.27230696,127.99,127.96,0.063]
[1742231541383,20.27230696,128.0,127.96,7.8779]
[1742231541766,40.27230696,127.99,127.96,7.8779]
[1742231541961,20.0,127.99,127.96,7.8779]
[1742231542366,40.27230696,127.99,127.96,7.8779]
[1742231542781,20.0,127.99,127.96,7.8779]
[1742231542989,20.27240696,128.03,127.98,20.27230696]
[1742231543283,0.0001,128.03,127.99,20.27230696]
[1742231543581,0.0001,128.03,127.99,53.90110696]
[1742231545079,0.0001,128.03,128.0,20.27230696]
[1742231545661,0.0001,128.03,128.01,7.8118]
[1742231547366,20.27230696,128.02,127.99,6.283]
[1742231547572,20.27230696,128.01,127.97,26.4755]
[1742231547779,20.27230696,128.01,127.98,7.8137]
[1742231548573,20.27230696,128.02,127.98,7.8137]
[1742231549175,20.27230696,128.01,127.98,7.8137]
[1742231550186,20.27230696,128.02,127.98,7.8137]
[1742231550564,20.27240696,128.03,127.98,7.8137]
[1742231550778,20.27230696,128.02,127.98,7.8137]
[1742231552373,20.27230696,128.01,127.97,14.754]
[1742231554390,20.27230696,127.99,127.96,9.4744]
[1742231554691,20.27230696,127.98,127.96,9.4744]
[1742231555089,20.27230696,127.99,127.96,9.4744]
[1742231555267,40.27230696,128.0,127.96,9.4744]
[1742231555690,20.0,128.0,127.96,49.28400696]
[1742231556090,20.0,128.01,127.96,49.28400696]
[1742231556990,20.0,128.01,127.97,0.28432314]
[1742231557177,20.0,128.01,127.97,20.5566301]
[1742231558098,20.0,128.01,127.97,0.28432314]
[1742231558580,20.0,128.01,127.98,7.8137]
[1742231560680,20.27230696,128.02,127.98,27.348]
[1742231561799,40.27230696,128.02,127.98,27.348]
[1742231562499,0.0001,128.03,127.99,0.28432314]
[1742231562695,0.0001,128.03,128.01,20.27230696]
[1742231562897,0.0001,128.03,128.01,27.21230696]
[1742231563488,0.0001,128.03,128.01,6.94]
[1742231563892,0.0001,128.03,128.02,7.8112]
[1742231577216,0.0001,128.03,128.02,7.8742]
[1742231577788,0.0001,128.03,128.02,21.3918638]
[1742231578593,0.0001,128.03,128.02,21.10754066]
[1742231578891,0.0001,128.03,128.02,7.8742]
[1742231580010,12.94911752,128.03,128.02,0.063]
[1742231582604,39.40936638,128.03,128.02,0.063]
[1742231582917,91.20543646,128.03,128.02,0.063]
[1742231583216,91.20543646,128.03,127.98,0.063]
[1742231583396,12.94901752,127.99,127.98,0.063]
[1742231583591,0.0001,128.03,127.99,1.91792314]
[1742231583799,0.0001,128.03,128.01,12.94901752]
[1742231584011,0.0001,128.03,128.02,7.8112]
[1742231585399,0.0001,128.03,128.02,20.76021752]
[1742231585597,0.0001,128.03,128.02,21.3288638]
[1742231587632,0.0001,128.03,128.02,28.60751444]
[1742231587994,0.0001,128.03,128.02,8.37984628]
[1742231588498,0.0001,128.03,128.02,28.60751444]
[1742231588913,0.0001,128.03,128.02,28.3861913]
[1742231589115,0.0001,128.03,128.02,7.8742]
[1742231589497,0.0001,128.03,128.02,28.3861913]
[1742231591396,0.0001,128.03,128.02,28.67051444]
[1742231591706,0.0001,128.03,128.02,28.3861913]
[1742231592116,0.0001,128.03,128.02,28.67051444]
[1742231592818,0.03,128.04,128.03,20.5119913]
[1742231592819,0.0001,128.04,128.03,20.5119913]
[1742231593622,0.0001,128.04,128.03,28.3225913]
[1742231593803,0.0001,128.04,128.03,28.18042973]
[1742231594420,0.0001,128.04,128.03,28.3225913]
[1742231595718,0.0001,128.04,128.03,69.04569631]
[1742231596021,0.0001,128.04,128.03,70.55619631]
[1742231596199,0.0001,128.04,128.03,74.40360761]
[1742231596401,0.0001,128.04,128.03,54.17593945]
[1742231596598,0.0001,128.04,128.03,52.6144746]
[1742231597199,0.0001,128.04,128.03,29.97525287]
[1742231597601,0.0001,128.04,128.03,7.8106]
[1742231598613,0.0001,128.04,128.02,0.063]
[1742231599523,0.0001,128.04,128.02,7.8741]
[1742231601499,0.0001,128.04,128.02,0.063]
[1742231601707,20.22766816,128.03,128.02,0.063]
[1742231606349,28.03826816,128.03,128.02,0.063]
[1742231606627,20.22766816,128.03,128.02,0.063]
[1742231607219,0.0001,128.04,128.02,0.063]
[1742231607220,20.22776816,128.04,128.02,0.063]
[1742231607419,40.22766816,128.03,128.02,0.063]
[1742231611139,32.95320601,128.03,128.02,0.063]
[1742231612534,51.88717801,128.03,128.02,0.063]
[1742231612739,32.95320601,128.03,128.02,0.063]
[1742231616641,20.0,128.03,128.02,0.063]
[1742231616951,32.95320601,128.03,128.02,0.063]
[1742231619747,20.0,128.03,128.02,0.063]
[1742231619938,32.95320601,128.03,128.02,0.063]
[1742231621237,40.76380601,128.03,128.02,0.063]
[1742231623630,32.95320601,128.03,128.02,0.063]
[1742231624964,32.98320601,128.03,128.02,0.063]
[1742231626237,59.44345487,128.03,128.02,0.063]
[1742231626430,111.54060205,128.03,128.02,0.063]
[1742231627148,59.72777801,128.03,128.02,0.063]
[1742231628444,51.63285487,128.03,128.02,0.063]
[1742231630545,59.44345487,128.03,128.02,0.063]
[1742231630732,32.98320601,128.03,128.02,0.063]
[1742231639178,59.44345487,128.03,128.02,0.063]
[1742231640354,51.63285487,128.03,128.02,0.063]
[1742231641467,32.98320601,128.03,128.02,0.063]
[1742231644366,40.79380601,128.03,128.02,0.063]
[1742231644561,32.98320601,128.03,128.02,0.063]
[1742231651280,40.79380601,128.03,128.02,0.063]
[1742231651579,32.98320601,128.03,128.02,0.063]
[1742231653272,0.03,128.03,128.02,0.063]
[1742231653468,0.03,128.03,128.02,14.52860601]
[1742231653675,0.0001,128.04,128.02,14.52860601]
[1742231653883,0.0001,128.04,128.03,26.08580601]
[1742231654463,0.0001,128.04,128.03,26.37012915]
[1742231654674,0.0001,128.04,128.03,26.51229072]
[1742231654988,0.0001,128.04,128.03,34.18072915]
[1742231656467,0.0001,128.04,128.03,20.9432]
[1742231657265,0.0001,128.04,128.03,14.7306]
[1742231657593,0.0001,128.04,128.03,7.8106]
[1742231658092,12.95330601,128.04,128.02,0.063]
[1742231658460,12.95330601,128.04,128.02,7.8741]
[1742231658993,0.0001,128.04,128.02,7.8741]
[1742231661169,12.95330601,128.04,128.02,0.063]
[1742231661489,12.95320601,128.03,128.02,0.063]
[1742231661670,83.41567891,128.03,128.02,0.063]
[1742231662082,83.98432519,128.03,128.02,0.063]
[1742231663676,91.79492519,128.03,128.02,0.063]
[1742231665389,93.36282519,128.03,128.02,0.063]
[1742231666987,93.36282519,128.03,127.98,0.063]
[1742231666988,20.0,127.99,127.98,0.063]
[1742231667179,51.60285487,127.99,127.98,0.063]
[1742231667579,52.17150115,127.99,127.98,0.063]
[1742231668691,59.98460115,127.99,127.98,0.063]
[1742231669099,0.28432314,127.97,127.96,0.063]
[1742231669288,39.09150115,127.97,127.96,0.063]
[1742231669469,90.90432519,127.97,127.96,0.063]
[1742231670277,90.62000205,127.97,127.96,0.063]
[1742231670481,39.09150115,127.97,127.96,0.063]
[1742231670890,46.90580115,127.97,127.96,0.063]
[1742231671892,19.87320601,127.97,127.96,0.063]
[1742231672903,6.92,128.01,127.96,0.063]
[1742231673111,20.0,127.98,127.96,6.344]
[1742231673987,27.1688019,128.01,127.96,6.344]
[1742231674190,20.2488019,128.0,127.96,6.344]
[1742231674892,20.2488019,128.0,127.97,7.8143]
[1742231676098,20.2488019,128.0,127.97,27.3501]
[1742231676584,20.0,127.99,127.97,27.3501]
[1742231676779,38.89845076,128.02,127.97,27.3501]
[1742231677196,38.89845076,128.02,127.97,47.5989019]
[1742231677701,20.2488019,128.02,127.97,47.5989019]
[1742231678107,20.2488019,128.02,127.97,54.5189019]
[1742231678397,20.2488019,128.03,127.98,20.2488019]
[1742231678782,0.0001,128.04,128.0,20.2488019]
[1742231679393,0.0001,128.04,128.01,7.8118]
[1742231680103,0.0001,128.04,128.02,13.4039]
[1742231680292,0.0001,128.04,128.02,33.6527019]
[1742231681403,0.0001,128.04,128.03,7.8106]
[1742231684106,0.0001,128.04,128.03,28.0594019]
[1742231686042,0.0001,128.04,128.03,7.8106]
[1742231687817,0.0001,128.04,128.03,28.0594019]
[1742231688016,0.0001,128.04,128.03,7.8106]
[1742231693408,0.0001,128.04,128.03,28.34372504]
[1742231693616,0.0001,128.04,128.03,28.62804818]
[1742231695525,0.03,128.1,128.04,1.86492314]
[1742231695699,0.03,128.1,128.08,20.2488019]
[1742231696530,0.03,128.1,128.07,20.2488019]
[1742231696904,0.03,128.1,128.09,28.0558019]
[1742231697309,0.03,128.1,128.09,7.807]
[1742231699533,0.03,128.1,128.09,28.0558019]
[1742231701733,0.03,128.1,128.09,35.26012504]
[1742231702307,0.03,128.12,128.09,35.26012504]
[1742231702308,0.03,128.12,128.1,0.56864628]
[1742231702511,0.03,128.16,128.12,0.28432314]
[1742231702730,0.03,128.16,128.14,20.2488019]
[1742231703231,0.03,128.16,128.13,27.1688019]
[1742231703432,0.03,128.16,128.14,20.2488019]
[1742231703623,0.03,128.16,128.14,19.2488019]
[1742231703802,20.03,128.16,128.15,7.8033]
[1742231704532,20.03,128.16,128.13,14.7243]
[1742231704921,0.03,128.16,128.13,34.9731019]
[1742231705927,0.03,128.16,128.13,14.7243]
[1742231706136,20.03,128.16,128.14,20.2488019]
[1742231707016,20.03,128.16,128.13,34.9731019]
[1742231708712,20.03,128.16,128.14,20.2488019]
[1742231708917,0.03,128.16,128.15,20.2488019]
[1742231710615,0.03,128.16,128.15,28.0521019]
[1742231713444,0.03,128.16,128.15,20.2488019]
[1742231713747,20.2788019,128.16,128.11,159.8971019]
[1742231713935,20.2488019,128.15,128.11,1.5483]
[1742231714321,20.2788019,128.16,128.11,21.7971019]
[1742231715131,12.92826311,128.15,128.11,1.5483]
[1742231715469,40.76106311,128.16,128.11,14.47656311]
[1742231716018,40.76106311,128.16,128.1,19.84826311]
[1742231716019,12.92826311,128.15,128.1,19.84826311]
[1742231716740,20.73256311,128.14,128.1,6.92]
[1742231716931,12.92826311,128.13,128.09,0.063]
[1742231717241,28.01186867,128.14,128.09,20.27056867]
[1742231720130,20.20756867,128.12,128.09,0.063]
[1742231720334,27.3142,128.14,128.09,0.063]
[1742231720335,20.20756867,128.11,128.09,0.063]
[1742231720540,20.20756867,128.1,128.09,0.063]
[1742231721051,28.01396867,128.1,128.09,0.063]
[1742231721343,20.20756867,128.1,128.09,0.063]
[1742231721864,81.8,128.15,128.09,0.063]
[1742231722142,20.0,128.12,128.09,20.27056867]
[1742231722446,20.0,128.12,128.09,0.063]
[1742231723045,20.0,128.12,128.09,7.87]
[1742231723427,20.0,128.12,128.09,0.063]
[1742231723943,40.20756867,128.12,128.09,0.063]
[1742231724347,20.20756867,128.11,128.09,0.063]
[1742231725549,20.20756867,128.1,128.09,0.063]
[1742231725847,40.20756867,128.11,128.09,0.063]
[1742231726037,18.64964886,128.14,128.09,0.063]
[1742231726236,20.20756867,128.13,128.09,0.063]
[1742231726926,40.20756867,128.12,128.09,0.063]
[1742231728649,20.20756867,128.11,128.09,0.063]
[1742231729639,40.20756867,128.1,128.09,0.063]
[1742231730328,20.0,128.1,128.09,0.063]
[1742231731648,40.20756867,128.1,128.09,0.063]
[1742231732260,20.0,128.1,128.09,0.063]
[1742231736365,40.20756867,128.1,128.09,0.063]
[1742231737355,20.0,128.1,128.09,0.063]
[1742231737862,40.20756867,128.1,128.09,0.063]
[1742231739246,32.94174023,128.1,128.09,0.063]
[1742231739563,40.74814023,128.1,128.09,0.063]
[1742231743573,59.39778909,128.1,128.09,0.063]
[1742231743750,39.39778909,128.1,128.09,0.063]
[1742231744250,12.94174023,128.1,128.09,0.063]
[1742231744653,39.39778909,128.1,128.09,0.063]
[1742231745797,31.59138909,128.1,128.09,0.063]
[1742231746364,39.39778909,128.1,128.09,0.063]
[1742231746542,12.94174023,128.1,128.09,0.063]
[1742231749451,19.86174023,128.11,128.09,0.063]
[1742231749656,31.59138909,128.1,128.09,0.063]
[1742231750775,12.94174023,128.1,128.09,0.063]
[1742231753188,20.74814023,128.1,128.09,0.063]
[1742231753867,12.94174023,128.1,128.09,0.063]
[1742231754064,91.44907315,128.1,128.09,0.063]
[1742231754448,39.68211223,128.1,128.09,0.063]
[1742231754972,0.03,128.14,128.09,0.063]
[1742231755272,12.94174023,128.12,128.09,0.063]
[1742231756265,7.834,128.14,128.09,0.063]
[1742231756266,12.94174023,128.13,128.09,0.063]
[1742231756883,20.0,128.11,128.09,0.063]
[1742231757056,12.94174023,128.1,128.09,0.063]
[1742231757364,32.94174023,128.1,128.09,0.063]
[1742231759170,59.39778909,128.1,128.09,0.063]
[1742231759476,20.0,128.1,128.09,0.063]
[1742231760576,32.94174023,128.1,128.09,0.063]
[1742231760955,20.0,128.1,128.09,0.063]
[1742231761166,12.94174023,128.13,128.09,0.063]
[1742231761559,12.94174023,128.13,128.09,7.87]
[1742231762252,12.97174023,128.14,128.09,20.81174023]
[1742231762860,12.94174023,128.13,128.09,7.87]
[1742231763366,12.94174023,128.12,128.09,0.063]
[1742231765479,12.94174023,128.1,128.09,0.063]
[1742231765684,20.0,128.11,128.09,0.063]
[1742231765997,32.94174023,128.11,128.09,0.063]
[1742231766351,12.94174023,128.1,128.09,0.063]
[1742231766968,31.59138909,128.1,128.09,0.063]
[1742231767164,83.92699629,128.1,128.09,0.063]
[1742231767373,20.0,128.07,128.03,7.8104]
[1742231767564,12.94174023,128.05,128.03,7.8104]
[1742231767769,12.94174023,128.06,128.03,7.8104]
[1742231768070,12.94174023,128.05,128.03,7.8104]
[1742231768489,12.94174023,128.04,128.02,1.5207]
[1742231768668,12.94174023,128.03,127.99,28.20141651]
[1742231768991,26.45844886,128.06,127.99,15.8774]
[1742231768992,12.94174023,128.02,127.99,15.8774]
[1742231769494,12.94174023,128.01,127.99,9.4211]
[1742231769870,0.28432314,128.05,127.98,0.063]
[1742231769871,12.94174023,128.0,127.98,0.063]
[1742231770054,12.94174023,127.99,127.98,0.063]
[1742231771165,20.2582452,127.99,127.98,0.063]
[1742231771686,46.0922172,127.99,127.98,0.063]
[1742231771892,46.37654034,127.99,127.98,0.063]
[1742231772393,46.37654034,127.99,127.96,0.063]
[1742231772394,0.28432314,127.97,127.96,0.063]
[1742231772581,20.54256834,127.97,127.96,0.063]
[1742231773073,58.90789406,127.97,127.96,0.063]
[1742231773790,20.0,127.97,127.96,0.063]
[1742231774290,6.9,127.99,127.96,0.063]
[1742231774291,27.1582452,127.99,127.96,0.063]
[1742231774659,20.0,127.99,127.96,0.063]
[1742231774872,20.2582452,128.0,127.96,0.063]
[1742231775080,20.2582452,127.99,127.96,0.063]
[1742231775585,20.2582452,128.0,127.96,0.063]
[1742231775783,20.2582452,127.98,127.96,0.063]
[1742231775989,20.2582452,127.97,127.96,0.063]
[1742231776463,40.2582452,127.99,127.96,0.063]
[1742231777583,20.0,127.99,127.96,0.063]
[1742231778365,20.0,127.99,127.96,27.4152]
[1742231778575,20.0,127.99,127.96,47.6734452]
[1742231779589,20.0,127.99,127.96,27.4152]
[1742231779782,0.03,127.98,127.96,27.4152]
[1742231781218,0.03,127.98,127.97,20.2582452]
[1742231781372,0.03,127.98,127.97,28.3047452]
[1742231781573,0.03,127.98,127.97,35.2247452]
[1742231782608,20.2582452,128.05,127.99,27.3458]
[1742231782794,20.2582452,128.05,127.99,47.6040452]
[1742231783107,40.2582452,128.04,127.99,34.2658]
[1742231783269,40.2582452,128.04,127.99,54.5240452]
[1742231783992,6.92,128.07,128.0,20.2582452]
[1742231784167,20.2582452,128.06,128.01,20.2582452]
[1742231784671,20.2582452,128.05,127.99,54.5240452]
[1742231784876,7.8082,128.07,127.99,54.5240452]
[1742231784877,20.2582452,128.04,127.99,54.5240452]
[1742231785776,20.2582452,128.06,128.0,20.2582452]
[1742231786177,20.2582452,128.06,128.01,20.2582452]
[1742231786377,20.2582452,128.07,128.02,20.2582452]
[1742231786585,20.2582452,128.08,128.03,28.1434452]
[1742231786778,20.0,128.06,128.04,20.2582452]
[1742231787293,20.2582452,128.09,128.04,20.2582452]
[1742231787472,20.0,128.07,128.05,20.2582452]
[1742231787714,20.2582452,128.1,128.05,20.2582452]
[1742231787996,20.2582452,128.1,128.06,7.8088]
[1742231788982,20.0,128.09,128.06,28.0670452]
[1742231790899,20.2582452,128.12,128.06,28.0670452]
[1742231791578,20.2582452,128.13,128.07,27.44256834]
[1742231791777,20.2582452,128.13,128.08,20.2582452]
[1742231792093,20.2582452,128.13,128.09,7.807]
[1742231792297,27.1882452,128.14,128.09,7.807]
[1742231792679,20.2582452,128.13,128.09,7.807]
[1742231792989,20.2582452,128.13,128.08,28.0655452]
[1742231793785,20.2582452,128.12,128.08,7.8073]
[1742231794186,20.2582452,128.12,128.07,14.7079]
[1742231795379,20.2582452,128.12,128.07,6.9]
[1742231795380,20.2582452,128.11,128.07,6.9]
[1742231795781,20.2582452,128.11,128.07,14.708]
[1742231796179,20.2582452,128.11,128.07,7.808]
[1742231796800,20.2582452,128.12,128.07,28.0662452]
[1742231796979,20.2582452,128.11,128.07,7.808]
[1742231797927,6.93,128.14,128.08,28.2565452]
[1742231798094,20.2582452,128.13,128.08,28.2565452]
[1742231799505,20.2582452,128.13,128.09,7.807]
[1742231802901,40.2582452,128.12,128.08,15.8057]
[1742231803080,20.2582452,128.11,128.08,9.4697]
[1742231803284,20.2582452,128.09,128.06,7.8088]
[1742231803707,20.2582452,128.08,128.06,7.8088]
[1742231804204,20.2582452,128.09,128.06,7.8088]
[1742231804802,20.2582452,128.1,128.06,7.8088]
[1742231805597,20.2582452,128.09,128.06,7.8088]
[1742231806017,20.2582452,128.09,128.03,7.8106]
[1742231806018,20.2582452,128.07,128.03,7.8106]
[1742231806188,18.64964886,128.09,128.02,1.5333]
[1742231806189,20.2582452,128.04,128.02,1.5333]
[1742231806382,20.2582452,128.04,128.0,7.8125]
[1742231808116,20.2582452,128.03,128.0,7.8125]
[1742231808684,20.2582452,128.02,127.99,15.4647]
[1742231809224,20.2582452,128.01,127.98,7.8764]
[1742231809400,20.2582452,128.01,127.98,0.063]
[1742231809789,20.2582452,128.02,127.98,0.063]
[1742231809990,20.2582452,128.03,127.98,20.3212452]
[1742231810196,27.1582452,128.04,127.99,20.2582452]
[1742231810598,20.2582452,128.05,128.0,20.2582452]
[1742231811290,20.2582452,128.05,127.99,20.2582452]
[1742231811916,20.2582452,128.03,128.0,7.8125]
[1742231812093,20.2582452,128.02,128.0,7.8125]
[1742231812493,40.2582452,128.03,128.0,7.8125]
[1742231812804,20.0,128.03,128.0,7.8125]
[1742231815008,40.2582452,128.03,127.99,7.8131]
[1742231815912,20.2582452,128.02,127.99,7.8131]
[1742231816208,20.2582452,128.02,127.98,0.063]
[1742231816396,20.2582452,128.0,127.98,0.063]
[1742231816596,20.2582452,127.99,127.98,0.063]
[1742231817108,20.2582452,128.0,127.98,0.063]
[1742231817313,45.54964886,128.03,127.98,0.063]
[1742231817314,20.2582452,128.01,127.98,0.063]
[1742231817510,27.1582452,128.03,127.98,20.3212452]
[1742231817994,20.2582452,128.01,127.98,0.063]
[1742231819219,20.2582452,128.02,127.98,0.063]
[1742231820018,6.9,128.03,127.98,0.063]
[1742231820019,20.2582452,128.01,127.98,0.063]
[1742231820490,7.8112,128.02,127.98,0.063]
[1742231820696,20.2582452,128.0,127.98,0.063]
[1742231821999,7.8112,128.02,127.98,0.063]
[1742231822000,20.2582452,127.99,127.98,0.063]
[1742231822320,46.72099406,127.99,127.98,0.063]
[1742231822722,38.90789406,127.99,127.98,0.063]
[1742231822918,20.2582452,128.0,127.98,0.063]
[1742231823501,20.2582452,128.02,127.98,0.063]
[1742231824295,20.2582452,128.02,127.98,7.8767]
[1742231824928,27.1582452,128.03,127.99,1.6403]
[1742231825310,20.2582452,128.02,127.99,1.6403]